[Event "December 19 Early 2023"]
[Site "https://www.chess.com"]
[Date "2023.12.19"]
[Round "5"]
[White "Cristobal, Manuel"]
[Black "Steinberg, Nitzan"]
[Result "0-1"]
[Board "20"]
[TimeControl "180+1"]
[WhiteFideId "112879"]
[BlackFideId "2801795"]
[WhiteElo "2244"]
[BlackElo "2486"]
[WhiteTeam "ARG"]
[BlackTeam "ISR"]
[WhiteClock "0:00:00"]
[BlackClock "0:00:04"]

1. d4 {[%clk 0:02:36]}  d5 {[%clk 0:02:58]} 2. Nf3 {[%clk 0:02:36]}  Nf6 {[%clk 0:02:59]} 3. e3 {[%clk 0:02:36]}  e6 {[%clk 0:02:56]} 4. Bd3 {[%clk 0:02:36]}  c5 {[%clk 0:02:56]} 5. O-O {[%clk 0:02:35]}  Nc6 {[%clk 0:02:51]} 6. b3 {[%clk 0:02:21]}  b6 {[%clk 0:02:49]} 7. Bb2 {[%clk 0:01:51]}  Bb7 {[%clk 0:02:46]} 8. a3 {[%clk 0:01:52]}  Be7 {[%clk 0:02:42]} 9. Nbd2 {[%clk 0:01:51]}  O-O {[%clk 0:02:42]} 10. Ne5 {[%clk 0:01:51]}  Rc8 {[%clk 0:02:35]} 11. f4 {[%clk 0:01:50]}  g6 {[%clk 0:02:26]} 12. Rf3 {[%clk 0:01:34]}  Nxe5 {[%clk 0:02:18]} 13. fxe5 {[%clk 0:01:26]}  Ne4 {[%clk 0:02:18]} 14. Bxe4 {[%clk 0:01:20]}  dxe4 {[%clk 0:02:18]} 15. Rh3 {[%clk 0:01:21]}  cxd4 {[%clk 0:01:56]} 16. Bxd4 {[%clk 0:01:13]}  Bc5 {[%clk 0:01:41]} 17. c3 {[%clk 0:01:13]}  Bxd4 {[%clk 0:01:25]} 18. cxd4 {[%clk 0:01:14]}  Bd5 {[%clk 0:01:16]} 19. Qg4 {[%clk 0:01:01]}  f5 {[%clk 0:01:09]} 20. exf6 {[%clk 0:00:59]}  Qxf6 {[%clk 0:01:09]} 21. Qh4 {[%clk 0:00:53]}  Qxh4 {[%clk 0:00:53]} 22. Rxh4 {[%clk 0:00:54]}  Rc2 {[%clk 0:00:48]} 23. Nxe4 {[%clk 0:00:53]}  Re2 {[%clk 0:00:21]} 24. Rf1 {[%clk 0:00:20]}  Rxf1+ {[%clk 0:00:19]} 25. Kxf1 {[%clk 0:00:21]}  Rxe3 {[%clk 0:00:19]} 26. Nf6+ {[%clk 0:00:21]}  Kg7 {[%clk 0:00:19]} 27. Nxh7 {[%clk 0:00:17]}  Rxb3 {[%clk 0:00:17]} 28. Ng5 {[%clk 0:00:15]}  Kf6 {[%clk 0:00:14]} 29. Nh7+ {[%clk 0:00:11]}  Kg7 {[%clk 0:00:13]} 30. Ng5 {[%clk 0:00:11]}  Kf6 {[%clk 0:00:10]} 31. Nh7+ {[%clk 0:00:12]}  Kf5 {[%clk 0:00:08]} 32. g3 {[%clk 0:00:03]}  g5 {[%clk 0:00:05]} 33. Rh5 {[%clk 0:00:01]}  Kg4 {[%clk 0:00:05]} 34. Rxg5+ {[%clk 0:00:02]}  Kf3 {[%clk 0:00:05]} 35. Ke1 {[%clk 0:00:02]}  Ke3 {[%clk 0:00:04]} 36. Kd1 {[%clk 0:00:00]}  Be4 {[%clk 0:00:04]} 0-1

[Event "December 19 Early 2023"]
[Site "https://www.chess.com"]
[Date "2023.12.19"]
[Round "5"]
[White "Sahib Singh"]
[Black "Kamsky, Gata"]
[Result "0-1"]
[Board "21"]
[TimeControl "180+1"]
[WhiteFideId "25618342"]
[BlackFideId "2000024"]
[WhiteElo "2130"]
[BlackElo "2660"]
[WhiteTeam "IND"]
[BlackTeam "USA"]
[WhiteClock "0:00:00"]
[BlackClock "0:01:07"]

1. e4 {[%clk 0:03:00]}  c5 {[%clk 0:02:55]} 2. Nf3 {[%clk 0:02:59]}  Nc6 {[%clk 0:02:54]} 3. d4 {[%clk 0:02:55]}  cxd4 {[%clk 0:02:55]} 4. Nxd4 {[%clk 0:02:55]}  Qb6 {[%clk 0:02:54]} 5. Nb3 {[%clk 0:02:54]}  Nf6 {[%clk 0:02:54]} 6. Nc3 {[%clk 0:02:51]}  e6 {[%clk 0:02:52]} 7. Qe2 {[%clk 0:02:48]}  Qc7 {[%clk 0:02:45]} 8. g3 {[%clk 0:02:38]}  a6 {[%clk 0:02:41]} 9. Bg2 {[%clk 0:02:38]}  d6 {[%clk 0:02:41]} 10. O-O {[%clk 0:02:37]}  Be7 {[%clk 0:02:41]} 11. f4 {[%clk 0:02:37]}  b5 {[%clk 0:02:37]} 12. Be3 {[%clk 0:02:17]}  Bb7 {[%clk 0:02:37]} 13. Rad1 {[%clk 0:02:12]}  O-O {[%clk 0:02:30]} 14. h3 {[%clk 0:01:56]}  b4 {[%clk 0:02:26]} 15. Na4 {[%clk 0:01:46]}  Nd7 {[%clk 0:02:25]} 16. Qf2 {[%clk 0:01:44]}  a5 {[%clk 0:02:21]} 17. Nb6 {[%clk 0:01:40]}  Nxb6 {[%clk 0:02:19]} 18. Bxb6 {[%clk 0:01:41]}  Qb8 {[%clk 0:02:15]} 19. Nd4 {[%clk 0:01:31]}  Ra6 {[%clk 0:02:05]} 20. Nxc6 {[%clk 0:01:28]}  Bxc6 {[%clk 0:02:04]} 21. Bd4 {[%clk 0:01:26]}  e5 {[%clk 0:02:04]} 22. fxe5 {[%clk 0:01:05]}  dxe5 {[%clk 0:02:03]} 23. Bc5 {[%clk 0:01:06]}  Qc7 {[%clk 0:01:55]} 24. Kh2 {[%clk 0:00:54]}  Bb5 {[%clk 0:01:54]} 25. Bxe7 {[%clk 0:00:54]}  Qxe7 {[%clk 0:01:54]} 26. Rfe1 {[%clk 0:00:54]}  Bc4 {[%clk 0:01:54]} 27. b3 {[%clk 0:00:54]}  Be6 {[%clk 0:01:53]} 28. Bf1 {[%clk 0:00:51]}  Rc6 {[%clk 0:01:53]} 29. Bb5 {[%clk 0:00:46]}  Rc5 {[%clk 0:01:52]} 30. Bd3 {[%clk 0:00:46]}  h5 {[%clk 0:01:49]} 31. Qf3 {[%clk 0:00:39]}  g6 {[%clk 0:01:49]} 32. Rd2 {[%clk 0:00:35]}  Kg7 {[%clk 0:01:48]} 33. Qe3 {[%clk 0:00:34]}  Rc7 {[%clk 0:01:40]} 34. Rf2 {[%clk 0:00:29]}  Qc5 {[%clk 0:01:38]} 35. Qe2 {[%clk 0:00:20]}  a4 {[%clk 0:01:36]} 36. Ref1 {[%clk 0:00:19]}  a3 {[%clk 0:01:34]} 37. Qd2 {[%clk 0:00:17]}  f6 {[%clk 0:01:32]} 38. Rf3 {[%clk 0:00:10]}  Qd4 {[%clk 0:01:31]} 39. Qf2 {[%clk 0:00:08]}  Qxf2+ {[%clk 0:01:31]} 40. R3xf2 {[%clk 0:00:09]}  Rd7 {[%clk 0:01:24]} 41. Kg2 {[%clk 0:00:07]}  Rd6 {[%clk 0:01:24]} 42. Rf3 {[%clk 0:00:06]}  Bc8 {[%clk 0:01:23]} 43. Kg1 {[%clk 0:00:05]}  Bxh3 {[%clk 0:01:21]} 44. R1f2 {[%clk 0:00:06]}  Bg4 {[%clk 0:01:21]} 45. Re3 {[%clk 0:00:06]}  Be6 {[%clk 0:01:21]} 46. Ref3 {[%clk 0:00:06]}  Bc8 {[%clk 0:01:19]} 47. Rh2 {[%clk 0:00:06]}  Rfd8 {[%clk 0:01:19]} 48. Rhf2 {[%clk 0:00:06]}  Ba6 {[%clk 0:01:18]} 49. Bxa6 {[%clk 0:00:03]}  Rxa6 {[%clk 0:01:18]} 50. c3 {[%clk 0:00:04]}  bxc3 {[%clk 0:01:16]} 51. Rxc3 {[%clk 0:00:05]}  g5 {[%clk 0:01:16]} 52. Rc7+ {[%clk 0:00:05]}  Kg6 {[%clk 0:01:15]} 53. Rc4 {[%clk 0:00:06]}  g4 {[%clk 0:01:14]} 54. Rfc2 {[%clk 0:00:05]}  Rad6 {[%clk 0:01:12]} 55. Kf2 {[%clk 0:00:03]}  Rd3 {[%clk 0:01:12]} 56. b4 {[%clk 0:00:02]}  Rf3+ {[%clk 0:01:11]} 57. Kg2 {[%clk 0:00:03]}  Rdd3 {[%clk 0:01:11]} 58. b5 {[%clk 0:00:03]}  Rxg3+ {[%clk 0:01:11]} 59. Kf1 {[%clk 0:00:04]}  Rd1+ {[%clk 0:01:10]} 60. Ke2 {[%clk 0:00:03]}  Rb1 {[%clk 0:01:10]} 61. Rc5 {[%clk 0:00:02]}  Rg2+ {[%clk 0:01:10]} 62. Kd3 {[%clk 0:00:03]}  Rxc2 {[%clk 0:01:10]} 63. Kxc2 {[%clk 0:00:03]}  Rb2+ {[%clk 0:01:10]} 64. Kc3 {[%clk 0:00:03]}  g3 {[%clk 0:01:10]} 65. Rc8 {[%clk 0:00:01]}  Kg7 {[%clk 0:01:08]} 66. Rc7+ {[%clk 0:00:01]}  Kh6 {[%clk 0:01:08]} 67. Rf7 {[%clk 0:00:01]}  Kg6 {[%clk 0:01:07]} 68. Rf8 {[%clk 0:00:02]}  h4 {[%clk 0:01:07]} 69. Rg8+ {[%clk 0:00:02]}  Kf7 {[%clk 0:01:07]} 70. Rg4 {[%clk 0:00:02]}  g2 {[%clk 0:01:07]} 71. b6 {[%clk 0:00:00]}  h3 {[%clk 0:01:07]} 0-1

[Event "December 19 Early 2023"]
[Site "https://www.chess.com"]
[Date "2023.12.19"]
[Round "5"]
[White "Liyanage, Ranindu Dilshan"]
[Black "Nihal Sarin"]
[Result "0-1"]
[Board "23"]
[TimeControl "180+1"]
[WhiteFideId "9915834"]
[BlackFideId "25092340"]
[WhiteElo "2198"]
[BlackElo "2689"]
[WhiteTeam "SRI"]
[BlackTeam "IND"]
[WhiteClock "0:00:07"]
[BlackClock "0:03:12"]

1. e4 {[%clk 0:02:55]}  g6 {[%clk 0:03:00]} 2. d4 {[%clk 0:02:55]}  Bg7 {[%clk 0:03:01]} 3. Nc3 {[%clk 0:02:55]}  d6 {[%clk 0:03:02]} 4. f4 {[%clk 0:02:56]}  Nc6 {[%clk 0:03:03]} 5. Be3 {[%clk 0:02:49]}  Nf6 {[%clk 0:03:03]} 6. Be2 {[%clk 0:02:45]}  O-O {[%clk 0:03:03]} 7. d5 {[%clk 0:02:41]}  Nb8 {[%clk 0:03:03]} 8. Nf3 {[%clk 0:02:41]}  c6 {[%clk 0:03:04]} 9. Qd2 {[%clk 0:02:30]}  b5 {[%clk 0:03:04]} 10. a3 {[%clk 0:02:29]}  a6 {[%clk 0:03:05]} 11. O-O {[%clk 0:02:24]}  Bb7 {[%clk 0:03:05]} 12. Rad1 {[%clk 0:02:16]}  cxd5 {[%clk 0:03:06]} 13. exd5 {[%clk 0:02:16]}  Nbd7 {[%clk 0:03:06]} 14. Nh4 {[%clk 0:01:46]}  Nb6 {[%clk 0:03:06]} 15. Bf3 {[%clk 0:01:47]}  Nc4 {[%clk 0:03:07]} 16. Qc1 {[%clk 0:01:47]}  Nxe3 {[%clk 0:03:06]} 17. Qxe3 {[%clk 0:01:48]}  Rc8 {[%clk 0:03:07]} 18. Kh1 {[%clk 0:01:48]}  Re8 {[%clk 0:03:08]} 19. f5 {[%clk 0:01:45]}  Nd7 {[%clk 0:03:08]} 20. fxg6 {[%clk 0:01:42]}  hxg6 {[%clk 0:03:08]} 21. Be4 {[%clk 0:01:42]}  Ne5 {[%clk 0:03:09]} 22. Qg3 {[%clk 0:01:39]}  Rc4 {[%clk 0:03:09]} 23. Rde1 {[%clk 0:01:29]}  b4 {[%clk 0:03:09]} 24. axb4 {[%clk 0:01:26]}  Rxb4 {[%clk 0:03:10]} 25. Rf2 {[%clk 0:01:14]}  Rf8 {[%clk 0:03:10]} 26. Ref1 {[%clk 0:01:11]}  a5 {[%clk 0:03:11]} 27. b3 {[%clk 0:01:02]}  Ba6 {[%clk 0:03:11]} 28. Re1 {[%clk 0:01:02]}  Qc7 {[%clk 0:03:12]} 29. Nb1 {[%clk 0:00:49]}  a4 {[%clk 0:03:10]} 30. bxa4 {[%clk 0:00:37]}  Rxa4 {[%clk 0:03:11]} 31. Nd2 {[%clk 0:00:38]}  Qa5 {[%clk 0:03:11]} 32. Rd1 {[%clk 0:00:25]}  Ra1 {[%clk 0:03:11]} 33. Bf3 {[%clk 0:00:19]}  Rxd1+ {[%clk 0:03:11]} 34. Bxd1 {[%clk 0:00:07]}  Qa1 {[%clk 0:03:12]} 0-1

[Event "December 19 Early 2023"]
[Site "https://www.chess.com"]
[Date "2023.12.19"]
[Round "5"]
[White "Harshavardhan G B"]
[Black "So, Wesley"]
[Result "0-1"]
[Board "24"]
[TimeControl "180+1"]
[WhiteFideId "25059009"]
[BlackFideId "5202213"]
[WhiteElo "2290"]
[BlackElo "2767"]
[WhiteTeam "IND"]
[BlackTeam "USA"]
[WhiteClock "0:00:09"]
[BlackClock "0:00:37"]

1. d4 {[%clk 0:02:57]}  Nf6 {[%clk 0:02:59]} 2. c4 {[%clk 0:02:58]}  e6 {[%clk 0:02:58]} 3. Nc3 {[%clk 0:02:57]}  d5 {[%clk 0:02:58]} 4. cxd5 {[%clk 0:02:57]}  exd5 {[%clk 0:02:59]} 5. Bg5 {[%clk 0:02:57]}  c6 {[%clk 0:02:59]} 6. e3 {[%clk 0:02:57]}  h6 {[%clk 0:02:56]} 7. Bh4 {[%clk 0:02:56]}  Be7 {[%clk 0:02:57]} 8. Bd3 {[%clk 0:02:57]}  O-O {[%clk 0:02:58]} 9. Nge2 {[%clk 0:02:57]}  Re8 {[%clk 0:02:58]} 10. O-O {[%clk 0:02:55]}  a5 {[%clk 0:02:57]} 11. Qc2 {[%clk 0:02:53]}  Nbd7 {[%clk 0:02:56]} 12. Rae1 {[%clk 0:02:51]}  Nh5 {[%clk 0:02:55]} 13. Bxe7 {[%clk 0:02:49]}  Rxe7 {[%clk 0:02:56]} 14. Ng3 {[%clk 0:02:48]}  Nxg3 {[%clk 0:02:54]} 15. hxg3 {[%clk 0:02:49]}  Nf6 {[%clk 0:02:52]} 16. f3 {[%clk 0:02:49]}  h5 {[%clk 0:02:44]} 17. Qd2 {[%clk 0:02:40]}  Qd6 {[%clk 0:02:41]} 18. Qf2 {[%clk 0:02:20]}  Bd7 {[%clk 0:02:28]} 19. Ne2 {[%clk 0:02:20]}  Rae8 {[%clk 0:02:27]} 20. Nf4 {[%clk 0:02:16]}  a4 {[%clk 0:02:22]} 21. a3 {[%clk 0:02:14]}  b6 {[%clk 0:02:20]} 22. Bb1 {[%clk 0:02:04]}  c5 {[%clk 0:02:13]} 23. Qc2 {[%clk 0:01:56]}  g6 {[%clk 0:01:51]} 24. Kf2 {[%clk 0:01:46]}  Bb5 {[%clk 0:01:45]} 25. Rh1 {[%clk 0:01:42]}  cxd4 {[%clk 0:01:35]} 26. exd4 {[%clk 0:01:41]}  Rxe1 {[%clk 0:01:27]} 27. Rxe1 {[%clk 0:01:42]}  Rxe1 {[%clk 0:01:27]} 28. Kxe1 {[%clk 0:01:43]}  g5 {[%clk 0:01:28]} 29. Nxh5 {[%clk 0:00:59]}  Nxh5 {[%clk 0:01:29]} 30. Qh7+ {[%clk 0:00:59]}  Kf8 {[%clk 0:01:29]} 31. Qxh5 {[%clk 0:00:59]}  Qxg3+ {[%clk 0:01:28]} 32. Kd1 {[%clk 0:00:58]}  Ke7 {[%clk 0:01:15]} 33. Qh8 {[%clk 0:00:50]}  Qf4 {[%clk 0:01:13]} 34. Bc2 {[%clk 0:00:41]}  Qe3 {[%clk 0:01:11]} 35. Bf5 {[%clk 0:00:27]}  Qg1+ {[%clk 0:00:58]} 36. Kc2 {[%clk 0:00:23]}  Qxg2+ {[%clk 0:00:59]} 37. Kc1 {[%clk 0:00:24]}  Qf1+ {[%clk 0:00:58]} 38. Kc2 {[%clk 0:00:23]}  Qe2+ {[%clk 0:00:57]} 39. Kc1 {[%clk 0:00:23]}  Bc4 {[%clk 0:00:49]} 40. Qb8 {[%clk 0:00:15]}  Qe1+ {[%clk 0:00:48]} 41. Kc2 {[%clk 0:00:15]}  Bb3+ {[%clk 0:00:48]} 42. Kd3 {[%clk 0:00:15]}  Qb1+ {[%clk 0:00:48]} 43. Kc3 {[%clk 0:00:16]}  Qxf5 {[%clk 0:00:48]} 44. Qc7+ {[%clk 0:00:17]}  Kf8 {[%clk 0:00:46]} 45. Qxb6 {[%clk 0:00:16]}  Kg7 {[%clk 0:00:43]} 46. Kb4 {[%clk 0:00:16]}  Qxf3 {[%clk 0:00:43]} 47. Qd6 {[%clk 0:00:16]}  g4 {[%clk 0:00:42]} 48. Qe5+ {[%clk 0:00:16]}  Qf6 {[%clk 0:00:43]} 49. Qg3 {[%clk 0:00:16]}  Qb6+ {[%clk 0:00:43]} 50. Kc3 {[%clk 0:00:16]}  Qc6+ {[%clk 0:00:44]} 51. Kd2 {[%clk 0:00:14]}  Qc2+ {[%clk 0:00:40]} 52. Ke3 {[%clk 0:00:15]}  Qe4+ {[%clk 0:00:40]} 53. Kf2 {[%clk 0:00:15]}  Qxd4+ {[%clk 0:00:41]} 54. Kg2 {[%clk 0:00:16]}  Qxb2+ {[%clk 0:00:41]} 55. Kh1 {[%clk 0:00:16]}  Qe2 {[%clk 0:00:39]} 56. Qd6 {[%clk 0:00:13]}  Qf3+ {[%clk 0:00:38]} 57. Kg1 {[%clk 0:00:13]}  Qe3+ {[%clk 0:00:37]} 58. Kg2 {[%clk 0:00:13]}  d4 {[%clk 0:00:37]} 59. Kh2 {[%clk 0:00:12]}  d3 {[%clk 0:00:36]} 60. Kg2 {[%clk 0:00:12]}  d2 {[%clk 0:00:37]} 61. Qg3 {[%clk 0:00:08]}  Qxg3+ {[%clk 0:00:36]} 62. Kh1 {[%clk 0:00:09]}  d1=Q# {[%clk 0:00:37]} 0-1

[Event "December 19 Early 2023"]
[Site "https://www.chess.com"]
[Date "2023.12.19"]
[Round "5"]
[White "Bardyk, Artem"]
[Black "Pranav, V"]
[Result "1-0"]
[Board "25"]
[TimeControl "180+1"]
[WhiteFideId "34349979"]
[BlackFideId "25060783"]
[WhiteElo "2300"]
[BlackElo "2562"]
[WhiteTeam "RUS"]
[BlackTeam "IND"]
[WhiteClock "0:00:05"]
[BlackClock "0:00:04"]

1. e4 {[%clk 0:02:38]}  e5 {[%clk 0:02:58]} 2. d4 {[%clk 0:02:32]}  exd4 {[%clk 0:02:58]} 3. Qxd4 {[%clk 0:02:33]}  Nc6 {[%clk 0:02:59]} 4. Qd3 {[%clk 0:02:32]}  Nf6 {[%clk 0:02:59]} 5. Nc3 {[%clk 0:02:32]}  Bb4 {[%clk 0:02:59]} 6. Bd2 {[%clk 0:02:31]}  O-O {[%clk 0:03:00]} 7. Nge2 {[%clk 0:02:30]}  Re8 {[%clk 0:03:00]} 8. O-O-O {[%clk 0:02:30]}  d6 {[%clk 0:03:00]} 9. Bg5 {[%clk 0:02:29]}  h6 {[%clk 0:02:58]} 10. Bxf6 {[%clk 0:02:21]}  Qxf6 {[%clk 0:02:57]} 11. Nd5 {[%clk 0:02:21]}  Qd8 {[%clk 0:02:57]} 12. Nxb4 {[%clk 0:02:19]}  Nxb4 {[%clk 0:02:58]} 13. Qd2 {[%clk 0:02:19]}  a5 {[%clk 0:02:44]} 14. a3 {[%clk 0:02:17]}  Nc6 {[%clk 0:02:28]} 15. Nc3 {[%clk 0:02:15]}  Be6 {[%clk 0:02:28]} 16. f4 {[%clk 0:02:09]}  Rb8 {[%clk 0:02:25]} 17. Rg1 {[%clk 0:02:05]}  Bg4 {[%clk 0:02:24]} 18. Re1 {[%clk 0:02:04]}  Na7 {[%clk 0:02:16]} 19. h3 {[%clk 0:02:03]}  Bd7 {[%clk 0:02:15]} 20. g4 {[%clk 0:02:01]}  g6 {[%clk 0:02:00]} 21. g5 {[%clk 0:01:52]}  h5 {[%clk 0:02:00]} 22. Nd5 {[%clk 0:01:52]}  Re6 {[%clk 0:01:39]} 23. Qc3 {[%clk 0:01:20]}  Nc6 {[%clk 0:01:28]} 24. Bc4 {[%clk 0:01:18]}  b5 {[%clk 0:01:26]} 25. Bb3 {[%clk 0:01:11]}  b4 {[%clk 0:01:26]} 26. axb4 {[%clk 0:01:12]}  axb4 {[%clk 0:01:27]} 27. Nf6+ {[%clk 0:01:00]}  Kh8 {[%clk 0:01:17]} 28. Qe3 {[%clk 0:00:40]}  Ra8 {[%clk 0:01:08]} 29. Bxe6 {[%clk 0:00:39]}  Bxe6 {[%clk 0:01:09]} 30. Kd2 {[%clk 0:00:35]}  b3 {[%clk 0:01:04]} 31. Ra1 {[%clk 0:00:34]}  Ne5 {[%clk 0:00:30]} 32. fxe5 {[%clk 0:00:26]}  Rb8 {[%clk 0:00:29]} 33. Qd4 {[%clk 0:00:20]}  c5 {[%clk 0:00:25]} 34. Qc3 {[%clk 0:00:19]}  Rb4 {[%clk 0:00:22]} 35. Rg3 {[%clk 0:00:13]}  Rc4 {[%clk 0:00:12]} 36. Qe3 {[%clk 0:00:05]}  dxe5+ {[%clk 0:00:09]} 37. Ke1 {[%clk 0:00:05]}  Kg7 {[%clk 0:00:09]} 38. cxb3 {[%clk 0:00:04]}  Rd4 {[%clk 0:00:08]} 39. Qe2 {[%clk 0:00:04]}  Qb6 {[%clk 0:00:06]} 40. Rd1 {[%clk 0:00:04]}  Qb4+ {[%clk 0:00:05]} 41. Kf1 {[%clk 0:00:04]}  Bxb3 {[%clk 0:00:04]} 42. Rxd4 {[%clk 0:00:04]}  cxd4 {[%clk 0:00:04]} 43. Kf2 {[%clk 0:00:04]}  Bc4 {[%clk 0:00:04]} 44. Qc2 {[%clk 0:00:04]}  Be6 {[%clk 0:00:03]} 45. Ne8+ {[%clk 0:00:03]}  Kf8 {[%clk 0:00:02]} 46. Nf6 {[%clk 0:00:04]}  Kg7 {[%clk 0:00:03]} 47. Ra3 {[%clk 0:00:04]}  d3 {[%clk 0:00:02]} 48. Rxd3 {[%clk 0:00:04]}  Qb6+ {[%clk 0:00:02]} 49. Re3 {[%clk 0:00:04]}  Qd4 {[%clk 0:00:02]} 50. Qc3 {[%clk 0:00:04]}  Qd1 {[%clk 0:00:02]} 51. Qxe5 {[%clk 0:00:04]}  Qd2+ {[%clk 0:00:02]} 52. Re2 {[%clk 0:00:05]}  Qc1 {[%clk 0:00:02]} 53. Nxh5+ {[%clk 0:00:03]}  Kf8 {[%clk 0:00:03]} 54. Qd6+ {[%clk 0:00:03]}  Kg8 {[%clk 0:00:03]} 55. Qd8+ {[%clk 0:00:03]}  Kh7 {[%clk 0:00:03]} 56. Nf6+ {[%clk 0:00:04]}  Kg7 {[%clk 0:00:04]} 57. Qg8# {[%clk 0:00:05]} 1-0

[Event "December 19 Early 2023"]
[Site "https://www.chess.com"]
[Date "2023.12.19"]
[Round "5"]
[White "Muradli, Mahammad"]
[Black "Arabidze, Meri"]
[Result "0-1"]
[Board "29"]
[TimeControl "180+1"]
[WhiteFideId "13409301"]
[BlackFideId "13604040"]
[WhiteElo "2551"]
[BlackElo "2416"]
[WhiteTeam "AZE"]
[BlackTeam "GEO"]
[WhiteClock "0:00:01"]
[BlackClock "0:00:11"]

1. g3 {[%clk 0:03:00]}  d5 {[%clk 0:02:59]} 2. Bg2 {[%clk 0:03:00]}  Nf6 {[%clk 0:03:00]} 3. d3 {[%clk 0:02:59]}  e6 {[%clk 0:03:00]} 4. Nd2 {[%clk 0:02:58]}  Be7 {[%clk 0:03:00]} 5. Ngf3 {[%clk 0:02:58]}  O-O {[%clk 0:03:00]} 6. e4 {[%clk 0:02:59]}  c5 {[%clk 0:03:01]} 7. O-O {[%clk 0:02:59]}  Nc6 {[%clk 0:03:01]} 8. c3 {[%clk 0:03:00]}  b5 {[%clk 0:02:59]} 9. a4 {[%clk 0:02:45]}  b4 {[%clk 0:02:58]} 10. c4 {[%clk 0:02:33]}  dxe4 {[%clk 0:02:53]} 11. dxe4 {[%clk 0:01:55]}  e5 {[%clk 0:02:53]} 12. b3 {[%clk 0:01:51]}  Qc7 {[%clk 0:02:42]} 13. Bb2 {[%clk 0:01:51]}  Nd4 {[%clk 0:02:42]} 14. Bxd4 {[%clk 0:01:39]}  cxd4 {[%clk 0:02:43]} 15. Ne1 {[%clk 0:01:39]}  Nd7 {[%clk 0:02:31]} 16. Nd3 {[%clk 0:01:36]}  Nc5 {[%clk 0:02:31]} 17. Nxb4 {[%clk 0:01:36]}  a5 {[%clk 0:02:24]} 18. Nd5 {[%clk 0:01:29]}  Qb7 {[%clk 0:02:24]} 19. f4 {[%clk 0:01:26]}  Bd6 {[%clk 0:02:11]} 20. fxe5 {[%clk 0:01:26]}  Bxe5 {[%clk 0:02:11]} 21. Nf3 {[%clk 0:01:27]}  Bg4 {[%clk 0:02:10]} 22. Rb1 {[%clk 0:01:15]}  f6 {[%clk 0:01:51]} 23. h3 {[%clk 0:01:04]}  Bxf3 {[%clk 0:01:50]} 24. Qxf3 {[%clk 0:01:05]}  Rab8 {[%clk 0:01:44]} 25. g4 {[%clk 0:01:03]}  h6 {[%clk 0:01:34]} 26. h4 {[%clk 0:01:02]}  Nxb3 {[%clk 0:01:11]} 27. Qf5 {[%clk 0:01:01]}  Qf7 {[%clk 0:01:04]} 28. g5 {[%clk 0:00:50]}  hxg5 {[%clk 0:00:51]} 29. hxg5 {[%clk 0:00:51]}  Qh5 {[%clk 0:00:51]} 30. Ne7+ {[%clk 0:00:50]}  Kh8 {[%clk 0:00:43]} 31. Ng6+ {[%clk 0:00:50]}  Kg8 {[%clk 0:00:44]} 32. Qe6+ {[%clk 0:00:38]}  Kh7 {[%clk 0:00:31]} 33. Nxe5 {[%clk 0:00:38]}  fxe5 {[%clk 0:00:23]} 34. Rxf8 {[%clk 0:00:38]}  Rxf8 {[%clk 0:00:23]} 35. Rxb3 {[%clk 0:00:39]}  Qd1+ {[%clk 0:00:23]} 36. Kh2 {[%clk 0:00:34]}  Qxb3 {[%clk 0:00:23]} 37. Qxe5 {[%clk 0:00:15]}  d3 {[%clk 0:00:23]} 38. Qd6 {[%clk 0:00:09]}  Qb8 {[%clk 0:00:21]} 39. e5 {[%clk 0:00:05]}  Qxd6 {[%clk 0:00:16]} 40. exd6 {[%clk 0:00:05]}  d2 {[%clk 0:00:17]} 41. Be4+ {[%clk 0:00:06]}  g6 {[%clk 0:00:15]} 42. Bc2 {[%clk 0:00:07]}  Rc8 {[%clk 0:00:12]} 43. Kg3 {[%clk 0:00:03]}  Rxc4 {[%clk 0:00:11]} 44. Bd1 {[%clk 0:00:03]}  Rd4 {[%clk 0:00:11]} 45. Kf3 {[%clk 0:00:04]}  Rxd6 {[%clk 0:00:11]} 46. Ke3 {[%clk 0:00:01]}  Kg7 {[%clk 0:00:11]} 0-1

[Event "December 19 Early 2023"]
[Site "https://www.chess.com"]
[Date "2023.12.19"]
[Round "5"]
[White "Vokhidov, Shamsiddin"]
[Black "Volkov, Maksim"]
[Result "1-0"]
[Board "31"]
[TimeControl "180+1"]
[WhiteFideId "14204223"]
[BlackFideId "54123070"]
[WhiteElo "2588"]
[BlackElo "2293"]
[WhiteTeam "UZB"]
[BlackTeam "RUS"]
[WhiteClock "0:02:07"]
[BlackClock "0:00:34"]

1. e4 {[%clk 0:03:00]}  c5 {[%clk 0:02:59]} 2. d4 {[%clk 0:03:01]}  cxd4 {[%clk 0:02:59]} 3. Nf3 {[%clk 0:03:02]}  e5 {[%clk 0:02:56]} 4. c3 {[%clk 0:03:02]}  dxc3 {[%clk 0:02:54]} 5. Nxc3 {[%clk 0:03:03]}  d6 {[%clk 0:02:45]} 6. Bc4 {[%clk 0:03:01]}  Be7 {[%clk 0:02:41]} 7. Qb3 {[%clk 0:02:57]}  Be6 {[%clk 0:02:26]} 8. Bxe6 {[%clk 0:02:55]}  fxe6 {[%clk 0:02:27]} 9. Qxe6 {[%clk 0:02:55]}  Qd7 {[%clk 0:02:25]} 10. Qb3 {[%clk 0:02:54]}  Nc6 {[%clk 0:02:25]} 11. O-O {[%clk 0:02:53]}  Nf6 {[%clk 0:02:22]} 12. Rd1 {[%clk 0:02:52]}  h6 {[%clk 0:02:13]} 13. Be3 {[%clk 0:02:51]}  Na5 {[%clk 0:02:07]} 14. Qc2 {[%clk 0:02:42]}  O-O {[%clk 0:02:04]} 15. Nxe5 {[%clk 0:02:41]}  Qe6 {[%clk 0:01:57]} 16. Ng6 {[%clk 0:02:41]}  Rf7 {[%clk 0:01:48]} 17. Qa4 {[%clk 0:02:40]}  Nc4 {[%clk 0:01:38]} 18. Nf4 {[%clk 0:02:40]}  Qc8 {[%clk 0:01:39]} 19. Bd4 {[%clk 0:02:31]}  Nxb2 {[%clk 0:01:35]} 20. Qb3 {[%clk 0:02:31]}  Nxd1 {[%clk 0:01:35]} 21. Rxd1 {[%clk 0:02:32]}  Qe8 {[%clk 0:01:26]} 22. Nb5 {[%clk 0:02:22]}  Qc6 {[%clk 0:01:08]} 23. Bxf6 {[%clk 0:02:20]}  gxf6 {[%clk 0:01:00]} 24. Nd5 {[%clk 0:02:19]}  Kh8 {[%clk 0:00:53]} 25. Nb4 {[%clk 0:02:11]}  Qxb5 {[%clk 0:00:42]} 26. Qxf7 {[%clk 0:02:11]}  Qe8 {[%clk 0:00:40]} 27. Qe6 {[%clk 0:02:07]}  Kg7 {[%clk 0:00:34]} 28. Nd5 {[%clk 0:02:07]} 1-0